[Event "Late-Titled-Tuesday-Blitz-June-18-2024"]
[Site "Chess.com"]
[Date "2024.06.18"]
[Round "7"]
[White "simaopdias"]
[Black "PhileKhoob"]
[Result "1/2-1/2"]
[WhiteElo "2211"]
[BlackElo "2348"]
[TimeControl "180+1"]
[EndTime "15:20:36 PDT"]
[Termination "Game drawn by repetition"]

1. e4 {[%clk 0:02:59.9]} 1... c6 {[%clk 0:02:55.8]} 2. d4 {[%clk 0:03:00]} 2...
d5 {[%clk 0:02:56.3]} 3. exd5 {[%clk 0:03:00.9]} 3... cxd5 {[%clk 0:02:56.1]} 4.
c4 {[%clk 0:03:01.8]} 4... Nf6 {[%clk 0:02:53.8]} 5. Nc3 {[%clk 0:03:02.7]} 5...
e6 {[%clk 0:02:53.1]} 6. Nf3 {[%clk 0:03:02.6]} 6... Nc6 {[%clk 0:02:42.5]} 7.
Bf4 {[%clk 0:03:02.8]} 7... Bb4 {[%clk 0:01:56.8]} 8. a3 {[%clk 0:02:58.6]} 8...
Bxc3+ {[%clk 0:01:54]} 9. bxc3 {[%clk 0:02:59.5]} 9... O-O {[%clk 0:01:54.3]}
10. c5 {[%clk 0:02:57.2]} 10... Ne4 {[%clk 0:01:04.9]} 11. Qc1 {[%clk
0:02:46.1]} 11... f6 {[%clk 0:00:58.1]} 12. Bd3 {[%clk 0:02:45.2]} 12... Qe7
{[%clk 0:00:55.6]} 13. O-O {[%clk 0:02:44.6]} 13... e5 {[%clk 0:00:53.9]} 14.
Be3 {[%clk 0:02:43.7]} 14... Nxc5 {[%clk 0:00:42]} 15. Bxh7+ {[%clk 0:02:30.6]}
15... Kxh7 {[%clk 0:00:17.7]} 16. dxc5 {[%clk 0:02:31.5]} 16... Rd8 {[%clk
0:00:16.4]} 17. Re1 {[%clk 0:02:30.2]} 17... Bf5 {[%clk 0:00:15.8]} 18. Qb2
{[%clk 0:02:27.1]} 18... Rab8 {[%clk 0:00:15.8]} 19. a4 {[%clk 0:02:26.3]} 19...
Na5 {[%clk 0:00:15.6]} 20. Nd2 {[%clk 0:02:26.5]} 20... Nc4 {[%clk 0:00:13.5]}
21. Qb4 {[%clk 0:02:20.6]} 21... Nxd2 {[%clk 0:00:11.4]} 22. Bxd2 {[%clk
0:02:21.5]} 22... b6 {[%clk 0:00:11.6]} 23. Qh4+ {[%clk 0:02:20]} 23... Kg8
{[%clk 0:00:12.1]} 24. cxb6 {[%clk 0:02:14.7]} 24... axb6 {[%clk 0:00:10.9]} 25.
Be3 {[%clk 0:02:05.3]} 25... Rdc8 {[%clk 0:00:10.5]} 26. Qb4 {[%clk 0:01:53.1]}
26... Qxb4 {[%clk 0:00:08.1]} 27. cxb4 {[%clk 0:01:54]} 27... Rc4 {[%clk
0:00:08.3]} 28. Bd2 {[%clk 0:01:46.8]} 28... d4 {[%clk 0:00:06.3]} 29. a5 {[%clk
0:01:46.1]} 29... Rc2 {[%clk 0:00:06.5]} 30. Red1 {[%clk 0:01:45.3]} 30... bxa5
{[%clk 0:00:06.7]} 31. Rxa5 {[%clk 0:01:40.6]} 31... Bd3 {[%clk 0:00:04.9]} 32.
Be1 {[%clk 0:01:35.7]} 32... Be2 {[%clk 0:00:05]} 33. Rda1 {[%clk 0:01:34.5]}
33... d3 {[%clk 0:00:04.7]} 34. Rd5 {[%clk 0:01:24.6]} 34... Rbc8 {[%clk
0:00:04.1]} 35. f3 {[%clk 0:01:19.8]} 35... Rc1 {[%clk 0:00:03.8]} 36. Rxc1
{[%clk 0:01:18]} 36... Rxc1 {[%clk 0:00:04.7]} 37. Kf2 {[%clk 0:01:18.6]} 37...
Rb1 {[%clk 0:00:05.4]} 38. g3 {[%clk 0:01:13.5]} 38... Rb2 {[%clk 0:00:05.2]}
39. Ke3 {[%clk 0:01:11.4]} 39... Kf7 {[%clk 0:00:05]} 40. f4 {[%clk 0:01:09.5]}
40... Ke6 {[%clk 0:00:04.6]} 41. Ra5 {[%clk 0:00:56.2]} 41... Bf1 {[%clk
0:00:03.7]} 42. Bd2 {[%clk 0:00:51.4]} 42... Be2 {[%clk 0:00:03]} 43. fxe5
{[%clk 0:00:50.6]} 43... fxe5 {[%clk 0:00:03.9]} 44. Rxe5+ {[%clk 0:00:47.2]}
44... Kxe5 {[%clk 0:00:03.3]} 45. Bc3+ {[%clk 0:00:47.6]} 45... Kd5 {[%clk
0:00:04]} 46. Bxb2 {[%clk 0:00:48.1]} 46... g5 {[%clk 0:00:04.7]} 47. Bc3 {[%clk
0:00:34.9]} 47... Kc4 {[%clk 0:00:04.2]} 48. Kd2 {[%clk 0:00:33.5]} 48... g4
{[%clk 0:00:02.6]} 49. b5 {[%clk 0:00:26.1]} 49... Kxb5 {[%clk 0:00:02.5]} 50.
Kc1 {[%clk 0:00:21.1]} 50... Kc4 {[%clk 0:00:03.1]} 51. Bd2 {[%clk 0:00:21.4]}
51... Kd5 {[%clk 0:00:04]} 52. Bf4 {[%clk 0:00:21.3]} 52... Ke4 {[%clk
0:00:04.6]} 53. Kd2 {[%clk 0:00:20.5]} 53... Kf3 {[%clk 0:00:05.2]} 54. Bg5
{[%clk 0:00:20.3]} 54... Kg2 {[%clk 0:00:05.8]} 55. Bf4 {[%clk 0:00:20.7]} 55...
Kxh2 {[%clk 0:00:06.5]} 56. Be5 {[%clk 0:00:20.7]} 56... Kg2 {[%clk 0:00:07.2]}
57. Bf4 {[%clk 0:00:21.2]} 57... Kf3 {[%clk 0:00:07.7]} 58. Be5 {[%clk 0:00:21]}
58... Ke4 {[%clk 0:00:08.4]} 59. Bd6 {[%clk 0:00:21.9]} 59... Kd5 {[%clk
0:00:08.9]} 60. Bc7 {[%clk 0:00:22.8]} 60... Ke4 {[%clk 0:00:08.1]} 61. Bf4
{[%clk 0:00:23.7]} 61... Kf3 {[%clk 0:00:07.7]} 62. Bc7 {[%clk 0:00:24.1]} 62...
Ke4 {[%clk 0:00:08.4]} 63. Bf4 {[%clk 0:00:24.5]} 63... Kd5 {[%clk 0:00:09.3]}
64. Bc7 {[%clk 0:00:24.1]} 64... Ke4 {[%clk 0:00:07.8]} 1/2-1/2

[Event "Late-Titled-Tuesday-Blitz-June-18-2024"]
[Site "Chess.com"]
[Date "2024.06.18"]
[Round "7"]
[White "patzer-reloaded"]
[Black "unkiyto"]
[Result "1-0"]
[WhiteElo "2464"]
[BlackElo "2607"]
[TimeControl "180+1"]
[EndTime "15:20:38 PDT"]
[Termination "patzer-reloaded won by resignation"]

1. d3 {[%clk 0:03:00.9]} 1... d5 {[%clk 0:02:46.7]} 2. Nf3 {[%clk 0:03:00.5]}
2... Nf6 {[%clk 0:02:46.8]} 3. g3 {[%clk 0:03:01.1]} 3... g6 {[%clk 0:02:46.8]}
4. Bg2 {[%clk 0:03:01.6]} 4... Bg7 {[%clk 0:02:47.4]} 5. O-O {[%clk 0:03:02.2]}
5... O-O {[%clk 0:02:47.2]} 6. c4 {[%clk 0:03:03.1]} 6... dxc4 {[%clk
0:02:46.6]} 7. dxc4 {[%clk 0:03:02.6]} 7... c5 {[%clk 0:02:47.3]} 8. Nc3 {[%clk
0:03:01.8]} 8... Nc6 {[%clk 0:02:47.7]} 9. Bf4 {[%clk 0:03:01.7]} 9... Bf5
{[%clk 0:02:43.2]} 10. Ne5 {[%clk 0:03:00.3]} 10... Nxe5 {[%clk 0:02:19.3]} 11.
Bxe5 {[%clk 0:02:56.9]} 11... Qc8 {[%clk 0:02:10.7]} 12. Qb3 {[%clk 0:02:53.5]}
12... Qe6 {[%clk 0:02:03.9]} 13. Bxf6 {[%clk 0:02:35.3]} 13... Bxf6 {[%clk
0:02:04.8]} 14. Rad1 {[%clk 0:02:01.3]} 14... Rad8 {[%clk 0:01:59.6]} 15. e3
{[%clk 0:01:42.4]} 15... b6 {[%clk 0:01:43.7]} 16. Nd5 {[%clk 0:01:32.4]} 16...
Bg7 {[%clk 0:01:38.9]} 17. Rd2 {[%clk 0:01:15.3]} 17... Be4 {[%clk 0:01:30.1]}
18. Bxe4 {[%clk 0:01:12.9]} 18... Qxe4 {[%clk 0:01:29.4]} 19. Rfd1 {[%clk
0:01:08.2]} 19... Rde8 {[%clk 0:00:49.6]} 20. Qa4 {[%clk 0:01:00.3]} 20... e6
{[%clk 0:00:46.1]} 21. Nc7 {[%clk 0:00:57]} 21... Re7 {[%clk 0:00:45.1]} 22. Nb5
{[%clk 0:00:52.5]} 22... h5 {[%clk 0:00:38.7]} 23. h4 {[%clk 0:00:36.9]} 23...
Qf3 {[%clk 0:00:21.9]} 24. Qc2 {[%clk 0:00:23.9]} 24... Be5 {[%clk 0:00:17.3]}
25. Nd6 {[%clk 0:00:14.6]} 25... g5 {[%clk 0:00:16.2]} 26. Qe4 {[%clk
0:00:12.8]} 26... Qxe4 {[%clk 0:00:11.6]} 27. Nxe4 {[%clk 0:00:13.7]} 27... gxh4
{[%clk 0:00:10.8]} 28. gxh4 {[%clk 0:00:14.6]} 28... Kh7 {[%clk 0:00:09.7]} 29.
Rd7 {[%clk 0:00:13.2]} 29... Rxd7 {[%clk 0:00:08]} 30. Rxd7 {[%clk 0:00:12.4]}
30... Bxb2 {[%clk 0:00:07]} 31. Rxa7 {[%clk 0:00:10.2]} 31... Kg6 {[%clk
0:00:06.9]} 32. Rb7 {[%clk 0:00:08.9]} 32... Kf5 {[%clk 0:00:06.7]} 33. Nd6+
{[%clk 0:00:07.8]} 33... Kf6 {[%clk 0:00:05.6]} 34. Rxb6 {[%clk 0:00:06.9]}
34... Ba3 {[%clk 0:00:05.2]} 35. Ne4+ {[%clk 0:00:05.4]} 35... Kf5 {[%clk
0:00:04.1]} 36. Ng3+ {[%clk 0:00:05.3]} 36... Kg4 {[%clk 0:00:03.5]} 37. Kg2
{[%clk 0:00:04.9]} 37... Kxh4 {[%clk 0:00:02.9]} 38. Rb7 {[%clk 0:00:04.7]}
38... Kg5 {[%clk 0:00:02.9]} 39. Rc7 {[%clk 0:00:03.7]} 39... h4 {[%clk
0:00:02.8]} 40. Ne4+ {[%clk 0:00:03.5]} 40... Kf5 {[%clk 0:00:03]} 41. Nxc5
{[%clk 0:00:04.4]} 41... Rg8+ {[%clk 0:00:03.1]} 42. Kh3 {[%clk 0:00:03.7]}
42... Ke5 {[%clk 0:00:02]} 43. Nd3+ {[%clk 0:00:02.1]} 43... Kf6 {[%clk
0:00:02.5]} 44. Nf4 {[%clk 0:00:02.1]} 44... e5 {[%clk 0:00:02]} 45. Rc6+ {[%clk
0:00:02.2]} 45... Kf5 {[%clk 0:00:01.9]} 46. Ng2 {[%clk 0:00:03.1]} 46... f6
{[%clk 0:00:01.8]} 47. Nxh4+ {[%clk 0:00:03]} 47... Ke4 {[%clk 0:00:02.3]} 48.
Rxf6 {[%clk 0:00:02.5]} 48... Rc8 {[%clk 0:00:02]} 49. Rg6 {[%clk 0:00:02.7]}
49... Rxc4 {[%clk 0:00:02]} 50. Rg4+ {[%clk 0:00:03.5]} 50... Kd5 {[%clk
0:00:02.6]} 51. Rxc4 {[%clk 0:00:03.9]} 51... Kxc4 {[%clk 0:00:03.5]} 52. Kg4
{[%clk 0:00:04]} 52... Kd5 {[%clk 0:00:04.1]} 53. Kf5 {[%clk 0:00:04]} 53... Bc5
{[%clk 0:00:04]} 54. Ng6 {[%clk 0:00:03.6]} 54... Bd6 {[%clk 0:00:02.8]} 55. f4
{[%clk 0:00:03.8]} 55... exf4 {[%clk 0:00:03]} 56. exf4 {[%clk 0:00:04.5]} 56...
Kc4 {[%clk 0:00:03.5]} 57. Ne5+ {[%clk 0:00:05]} 57... Kb4 {[%clk 0:00:03.4]}
58. Ke6 {[%clk 0:00:04.6]} 58... Bc5 {[%clk 0:00:01.9]} 59. f5 {[%clk
0:00:04.8]} 59... Ka3 {[%clk 0:00:02]} 60. f6 {[%clk 0:00:04.9]} 60... Kxa2
{[%clk 0:00:01.9]} 61. f7 {[%clk 0:00:05]} 61... Bf8 {[%clk 0:00:01.3]} 62. Ng6
{[%clk 0:00:04.9]} 62... Bg7 {[%clk 0:00:01.7]} 63. Ke7 {[%clk 0:00:04]} 63...
Bh6 {[%clk 0:00:02.2]} 64. Nh4 {[%clk 0:00:04]} 64... Bg7 {[%clk 0:00:02.5]} 65.
Nf5 {[%clk 0:00:04.5]} 1-0

[Event "Late-Titled-Tuesday-Blitz-June-18-2024"]
[Site "Chess.com"]
[Date "2024.06.18"]
[Round "7"]
[White "crazycheesecake"]
[Black "marszach123"]
[Result "0-1"]
[WhiteElo "2083"]
[BlackElo "1933"]
[TimeControl "180+1"]
[EndTime "15:20:44 PDT"]
[Termination "marszach123 won on time"]

1. Nf3 {[%clk 0:03:00.9]} 1... d5 {[%clk 0:02:59.6]} 2. c4 {[%clk 0:03:00.3]}
2... c6 {[%clk 0:02:58.7]} 3. g3 {[%clk 0:02:59.9]} 3... Nf6 {[%clk 0:02:56.1]}
4. Bg2 {[%clk 0:02:59.8]} 4... Bf5 {[%clk 0:02:44.7]} 5. b3 {[%clk 0:02:46]}
5... e6 {[%clk 0:02:43]} 6. Bb2 {[%clk 0:02:40.4]} 6... Ne4 {[%clk 0:02:32.7]}
7. O-O {[%clk 0:02:31.5]} 7... Nd7 {[%clk 0:02:20.4]} 8. d3 {[%clk 0:02:17.9]}
8... Nef6 {[%clk 0:02:19.8]} 9. Nbd2 {[%clk 0:01:58.7]} 9... Be7 {[%clk
0:02:14.8]} 10. Re1 {[%clk 0:01:34.6]} 10... O-O {[%clk 0:01:48.6]} 11. e4
{[%clk 0:01:32.2]} 11... dxe4 {[%clk 0:01:41.4]} 12. dxe4 {[%clk 0:01:31.8]}
12... Bg4 {[%clk 0:01:36.7]} 13. e5 {[%clk 0:01:14.6]} 13... Ne8 {[%clk
0:01:27.1]} 14. Qc2 {[%clk 0:00:40.8]} 14... Bf5 {[%clk 0:01:22.2]} 15. Ne4
{[%clk 0:00:38.2]} 15... Nc5 {[%clk 0:01:19]} 16. Nd4 {[%clk 0:00:33.6]} 16...
Bg6 {[%clk 0:01:02.6]} 17. Rad1 {[%clk 0:00:21.1]} 17... Qb6 {[%clk 0:00:47.9]}
18. Qe2 {[%clk 0:00:17.3]} 18... Nxe4 {[%clk 0:00:44.5]} 19. Bxe4 {[%clk
0:00:16.8]} 19... Bc5 {[%clk 0:00:37.2]} 20. Bxg6 {[%clk 0:00:12.4]} 20... hxg6
{[%clk 0:00:38.1]} 21. Qe4 {[%clk 0:00:11.7]} 21... Nc7 {[%clk 0:00:30.1]} 22.
Kg2 {[%clk 0:00:09.3]} 22... Rad8 {[%clk 0:00:26.8]} 23. f4 {[%clk 0:00:04.9]}
23... Na6 {[%clk 0:00:22]} 24. h4 {[%clk 0:00:03.5]} 24... Bxd4 {[%clk
0:00:16.1]} 25. Bxd4 {[%clk 0:00:03.1]} 25... c5 {[%clk 0:00:16.2]} 26. Bc3
{[%clk 0:00:03]} 26... Qc6 {[%clk 0:00:14.9]} 27. Qxc6 {[%clk 0:00:02.7]} 27...
bxc6 {[%clk 0:00:15.8]} 28. Rd6 {[%clk 0:00:03]} 28... Rxd6 {[%clk 0:00:15.2]}
29. exd6 {[%clk 0:00:03.9]} 29... Rd8 {[%clk 0:00:14.8]} 30. Be5 {[%clk
0:00:04.4]} 30... f6 {[%clk 0:00:14]} 31. Bc3 {[%clk 0:00:03.9]} 31... Rxd6
{[%clk 0:00:13.5]} 32. Re2 {[%clk 0:00:02]} 32... Kf7 {[%clk 0:00:10.8]} 33. Bb2
{[%clk 0:00:01.9]} 33... Nb4 {[%clk 0:00:10.6]} 34. Kf3 {[%clk 0:00:02.5]} 34...
Nd3 {[%clk 0:00:09.9]} 35. Bc3 {[%clk 0:00:02.4]} 35... Ke7 {[%clk 0:00:09.6]}
36. Ke3 {[%clk 0:00:02]} 36... Nb4 {[%clk 0:00:08.9]} 37. Bxb4 {[%clk
0:00:02.4]} 37... cxb4 {[%clk 0:00:09.8]} 38. Rd2 {[%clk 0:00:02.7]} 38... c5
{[%clk 0:00:09.5]} 39. Re2 {[%clk 0:00:02.4]} 39... a5 {[%clk 0:00:09.3]} 40.
Rf2 {[%clk 0:00:02.6]} 40... f5 {[%clk 0:00:09.2]} 41. Rg2 {[%clk 0:00:03.2]}
41... Kf6 {[%clk 0:00:09.4]} 42. Rh2 {[%clk 0:00:03.8]} 42... Rd4 {[%clk
0:00:09.7]} 43. Rg2 {[%clk 0:00:03.8]} 43... Rd1 {[%clk 0:00:07.7]} 44. Rf2
{[%clk 0:00:03.4]} 44... e5 {[%clk 0:00:06.9]} 45. fxe5+ {[%clk 0:00:03.4]}
45... Kxe5 {[%clk 0:00:07.8]} 46. Re2 {[%clk 0:00:02.7]} 46... Kf6 {[%clk
0:00:05.1]} 47. Kf3 {[%clk 0:00:02.3]} 47... Rd3+ {[%clk 0:00:04.1]} 48. Kf2
{[%clk 0:00:02.4]} 48... g5 {[%clk 0:00:02.5]} 49. hxg5+ {[%clk 0:00:02.2]}
49... Kxg5 {[%clk 0:00:03.4]} 50. Kg2 {[%clk 0:00:02.3]} 50... Kg4 {[%clk
0:00:03.8]} 51. Kf2 {[%clk 0:00:01.7]} 51... Rxg3 {[%clk 0:00:04.2]} 52. Re7
{[%clk 0:00:02.3]} 52... Rf3+ {[%clk 0:00:04.3]} 53. Kg2 {[%clk 0:00:02.9]}
53... Kf4 {[%clk 0:00:04.4]} 54. Rxg7 {[%clk 0:00:02.4]} 54... Ke4 {[%clk
0:00:04.9]} 55. Re7+ {[%clk 0:00:02.3]} 55... Kf4 {[%clk 0:00:05.4]} 56. Rc7
{[%clk 0:00:02.1]} 56... Rd3 {[%clk 0:00:05.2]} 57. Rxc5 {[%clk 0:00:01.7]}
57... Rd2+ {[%clk 0:00:06]} 58. Kh3 {[%clk 0:00:01.9]} 58... Rxa2 {[%clk
0:00:06.8]} 59. Rc8 {[%clk 0:00:01]} 59... Ke4 {[%clk 0:00:07.1]} 60. Re8+
{[%clk 0:00:01.3]} 60... Kd4 {[%clk 0:00:07]} 61. Rf8 {[%clk 0:00:01.7]} 61...
Kc3 {[%clk 0:00:07.3]} 62. Rxf5 {[%clk 0:00:01.4]} 62... Kxb3 {[%clk 0:00:07.8]}
63. c5 {[%clk 0:00:01.7]} 63... Rc2 {[%clk 0:00:07.7]} 64. Kg3 {[%clk
0:00:01.3]} 64... a4 {[%clk 0:00:08.2]} 65. Kf3 {[%clk 0:00:01.3]} 65... a3
{[%clk 0:00:08.5]} 0-1

[Event "Late-Titled-Tuesday-Blitz-June-18-2024"]
[Site "Chess.com"]
[Date "2024.06.18"]
[Round "7"]
[White "Masterisback04"]
[Black "esskeettit"]
[Result "1/2-1/2"]
[WhiteElo "2136"]
[BlackElo "2514"]
[TimeControl "180+1"]
[EndTime "15:21:07 PDT"]
[Termination "Game drawn - insufficient material"]

1. e4 {[%clk 0:03:00.9]} 1... c5 {[%clk 0:02:59.7]} 2. Nf3 {[%clk 0:03:00.3]}
2... Nc6 {[%clk 0:02:59.9]} 3. d4 {[%clk 0:02:52.5]} 3... cxd4 {[%clk
0:03:00.8]} 4. Nxd4 {[%clk 0:02:53]} 4... g6 {[%clk 0:03:01.1]} 5. Nc3 {[%clk
0:02:48.2]} 5... Bg7 {[%clk 0:03:00.7]} 6. Be3 {[%clk 0:02:48.4]} 6... Nf6
{[%clk 0:03:00.1]} 7. Be2 {[%clk 0:02:47.4]} 7... O-O {[%clk 0:02:40.9]} 8. O-O
{[%clk 0:02:46.7]} 8... d5 {[%clk 0:02:26.5]} 9. exd5 {[%clk 0:02:37.7]} 9...
Nxd5 {[%clk 0:02:24.6]} 10. Nxd5 {[%clk 0:02:35.7]} 10... Qxd5 {[%clk
0:02:25.5]} 11. Bf3 {[%clk 0:02:27.4]} 11... Qc4 {[%clk 0:02:10]} 12. Nxc6
{[%clk 0:02:25.2]} 12... bxc6 {[%clk 0:02:07.8]} 13. b3 {[%clk 0:02:09.7]} 13...
Qc3 {[%clk 0:01:58.1]} 14. Rb1 {[%clk 0:02:04.5]} 14... Bf5 {[%clk 0:01:57.5]}
15. Rc1 {[%clk 0:01:59.5]} 15... Rfd8 {[%clk 0:01:56.6]} 16. Qe2 {[%clk
0:01:59.7]} 16... a5 {[%clk 0:01:20.7]} 17. a4 {[%clk 0:01:58.1]} 17... Rac8
{[%clk 0:01:11.2]} 18. h3 {[%clk 0:01:22.6]} 18... e5 {[%clk 0:00:56.8]} 19. Bg4
{[%clk 0:01:15.6]} 19... Bxg4 {[%clk 0:00:51.5]} 20. hxg4 {[%clk 0:01:10.9]}
20... e4 {[%clk 0:00:49.2]} 21. Qa6 {[%clk 0:01:09.2]} 21... Qe5 {[%clk
0:00:41.8]} 22. Bb6 {[%clk 0:01:03.9]} 22... Ra8 {[%clk 0:00:31.7]} 23. Qe2
{[%clk 0:01:03.5]} 23... Rdb8 {[%clk 0:00:26.8]} 24. Be3 {[%clk 0:01:02.2]}
24... Qe6 {[%clk 0:00:25.1]} 25. Rcd1 {[%clk 0:01:00.2]} 25... Rd8 {[%clk
0:00:23]} 26. Bb6 {[%clk 0:00:59.2]} 26... Rdb8 {[%clk 0:00:22.4]} 27. Be3
{[%clk 0:00:58.1]} 27... Be5 {[%clk 0:00:22]} 28. Bd4 {[%clk 0:00:43.9]} 28...
Bd6 {[%clk 0:00:20.5]} 29. Rfe1 {[%clk 0:00:38.7]} 29... Re8 {[%clk 0:00:19.9]}
30. Ba1 {[%clk 0:00:27]} 30... Bc7 {[%clk 0:00:18.5]} 31. Rd4 {[%clk 0:00:24.3]}
31... f5 {[%clk 0:00:14.8]} 32. gxf5 {[%clk 0:00:23.9]} 32... gxf5 {[%clk
0:00:15.7]} 33. Qh5 {[%clk 0:00:20.5]} 33... Be5 {[%clk 0:00:15.1]} 34. Qg5+
{[%clk 0:00:19.6]} 34... Qg6 {[%clk 0:00:15.3]} 35. Qxg6+ {[%clk 0:00:15.5]}
35... hxg6 {[%clk 0:00:16.2]} 36. Rc4 {[%clk 0:00:15.7]} 36... Bxa1 {[%clk
0:00:14.1]} 37. Rxa1 {[%clk 0:00:16.6]} 37... Re6 {[%clk 0:00:13.5]} 38. Rd1
{[%clk 0:00:16.5]} 38... Kf7 {[%clk 0:00:09]} 39. Rd7+ {[%clk 0:00:16.5]} 39...
Kf6 {[%clk 0:00:09.4]} 40. g3 {[%clk 0:00:16.6]} 40... Ra6 {[%clk 0:00:09.4]}
41. Rc5 {[%clk 0:00:15.9]} 41... e3 {[%clk 0:00:06.8]} 42. fxe3 {[%clk
0:00:15.2]} 42... Rxe3 {[%clk 0:00:07.4]} 43. Kf2 {[%clk 0:00:14.4]} 43... Re6
{[%clk 0:00:07.2]} 44. Rb7 {[%clk 0:00:11.2]} 44... Rd6 {[%clk 0:00:06.1]} 45.
Rc7 {[%clk 0:00:10.8]} 45... Ke6 {[%clk 0:00:04.7]} 46. Ke3 {[%clk 0:00:10.8]}
46... g5 {[%clk 0:00:04.5]} 47. Kf3 {[%clk 0:00:10.8]} 47... g4+ {[%clk
0:00:03.9]} 48. Kf4 {[%clk 0:00:10.2]} 48... Kf6 {[%clk 0:00:03.4]} 49. c3
{[%clk 0:00:08.6]} 49... Re6 {[%clk 0:00:02.2]} 50. Rc4 {[%clk 0:00:08.3]} 50...
Kg6 {[%clk 0:00:02.7]} 51. Rc8 {[%clk 0:00:05.1]} 51... Rd6 {[%clk 0:00:03.1]}
52. Rg8+ {[%clk 0:00:05.2]} 52... Kf7 {[%clk 0:00:03.3]} 53. Rh8 {[%clk
0:00:05.5]} 53... Rd3 {[%clk 0:00:03.4]} 54. Kxf5 {[%clk 0:00:04.8]} 54... Rxg3
{[%clk 0:00:04]} 55. Rh7+ {[%clk 0:00:04.6]} 55... Kg8 {[%clk 0:00:04]} 56. Rc7
{[%clk 0:00:05.4]} 56... Rf3+ {[%clk 0:00:04.2]} 57. Kg6 {[%clk 0:00:05.8]}
57... c5+ {[%clk 0:00:03.7]} 58. Kg5 {[%clk 0:00:04.7]} 58... g3 {[%clk
0:00:04.2]} 59. Rh4 {[%clk 0:00:04.5]} 59... Re6 {[%clk 0:00:03.9]} 60. Rg4
{[%clk 0:00:04.8]} 60... Re5+ {[%clk 0:00:04.2]} 61. Kh4+ {[%clk 0:00:05.2]}
61... Kf8 {[%clk 0:00:03.9]} 62. Rxg3 {[%clk 0:00:05.6]} 62... Re4+ {[%clk
0:00:03.5]} 63. Rg4 {[%clk 0:00:05.4]} 63... Rxg4+ {[%clk 0:00:03.8]} 64. Kxg4
{[%clk 0:00:04.6]} 64... Rxc3 {[%clk 0:00:04.7]} 65. Kf5 {[%clk 0:00:04.5]}
65... Ke8 {[%clk 0:00:03.7]} 66. Ke6 {[%clk 0:00:03.7]} 66... Kd8 {[%clk
0:00:04.2]} 67. Rc6 {[%clk 0:00:03.8]} 67... Rxb3 {[%clk 0:00:04.1]} 68. Rxc5
{[%clk 0:00:03.8]} 68... Rb4 {[%clk 0:00:03.6]} 69. Rxa5 {[%clk 0:00:03.8]}
69... Kc7 {[%clk 0:00:04]} 70. Kd5 {[%clk 0:00:04.1]} 70... Kb6 {[%clk
0:00:04.2]} 71. Rb5+ {[%clk 0:00:03.4]} 71... Rxb5+ {[%clk 0:00:04.2]} 72. axb5
{[%clk 0:00:04.3]} 72... Kxb5 {[%clk 0:00:05.1]} 1/2-1/2